bitfinex-derivatives/quotes_BTCF0:USTF0_20220103
["timestamp","ask_amount","ask_price","bid_price","bid_amount"]
[1641199788601,1.43384088,46966.0,46962.0,0.36220173]
[1641199789604,1.43384088,46966.0,46959.0,0.98547304]
[1641199789605,0.14033567,46969.0,46959.0,0.14033567]
[1641199790406,0.32533567,46969.0,46959.0,0.14033567]
[1641199791604,0.14033567,46969.0,46959.0,0.14033567]
[1641199792310,0.32733567,46969.0,46959.0,0.14033567]
[1641199793611,0.14033567,46969.0,46959.0,0.14033567]
[1641199794311,0.32733567,46969.0,46959.0,0.14033567]
[1641199795414,1.43332813,46965.0,46959.0,0.14033567]
[1641199795615,1.43332813,46965.0,46961.0,0.36220818]
[1641199796315,1.62132813,46965.0,46961.0,0.36220818]
[1641199798215,1.43332813,46965.0,46961.0,0.36220818]
[1641199798415,1.62532813,46965.0,46961.0,0.36220818]
[1641199799618,1.43332813,46965.0,46961.0,0.36220818]
[1641199800418,1.62432813,46965.0,46961.0,0.36220818]
[1641199800621,0.09056405,46964.0,46961.0,0.36220818]
[1641199802522,0.27856405,46964.0,46961.0,0.36220818]
[1641199803723,0.09056405,46964.0,46961.0,0.36220818]
[1641199804324,0.27756405,46964.0,46961.0,0.36220818]
[1641199805625,0.09056405,46964.0,46961.0,0.36220818]
[1641199806325,0.27856405,46964.0,46961.0,0.36220818]
[1641199806525,1.43332813,46963.0,46959.0,1.10622416]
[1641199806726,1.43332813,46963.0,46959.0,0.50254385]
[1641199808425,1.62632813,46963.0,46959.0,0.50254385]
[1641199809626,1.43332813,46963.0,46959.0,0.50254385]
[1641199810430,1.62632813,46963.0,46959.0,0.50254385]
[1641199811330,1.69739813,46963.0,46959.0,0.50254385]
[1641199811731,1.50439813,46963.0,46959.0,0.50254385]
[1641199811932,1.50439813,46963.0,46957.0,0.60368031]
[1641199812133,1.6447338,46963.0,46957.0,0.60368031]
[1641199812338,1.8297338,46963.0,46957.0,0.60368031]
[1641199812734,1.43332813,46961.0,46956.0,0.60368031]
[1641199813336,0.09056405,46960.0,46956.0,0.60368031]
[1641199814535,0.27456405,46960.0,46956.0,0.60368031]
[1641199815739,0.09056405,46960.0,46956.0,0.60368031]
[1641199816539,0.27356405,46960.0,46956.0,0.60368031]
[1641199817839,0.09056405,46959.0,46956.0,0.60368031]
[1641199818550,0.27456405,46959.0,46956.0,0.60368031]
[1641199819553,0.09056405,46958.0,46956.0,0.60368031]
[1641199820454,0.27556405,46958.0,46956.0,0.60368031]
[1641199821855,0.14033567,46963.0,46955.0,0.62497754]
[1641199821856,0.09056405,46957.0,46955.0,0.62497754]
[1641199822354,0.27756405,46957.0,46955.0,0.62497754]
[1641199822754,0.187,46957.0,46955.0,0.62497754]
[1641199823570,0.09056405,46956.0,46955.0,0.62497754]
[1641199824356,0.27756405,46956.0,46955.0,0.62497754]
[1641199825657,0.09056405,46956.0,46955.0,0.62497754]
[1641199826461,0.27856405,46956.0,46955.0,0.62497754]
[1641199826760,0.188,46956.0,46955.0,0.68497754]
[1641199826964,0.09056405,46962.0,46955.0,4.67421533]
[1641199827160,0.09056405,46962.0,46961.0,0.18]
[1641199827361,0.09056405,46962.0,46961.0,0.001]
[1641199827763,0.09056405,46962.0,46961.0,0.181]
[1641199828060,0.09056405,46962.0,46961.0,0.001]
[1641199828261,0.09056405,46962.0,46961.0,0.36315128]
[1641199828564,0.09056405,46962.0,46961.0,0.73715128]
[1641199828761,0.09056405,46962.0,46961.0,0.73615128]
[1641199828962,0.09056405,46962.0,46961.0,0.55615128]
[1641199829163,0.09056405,46962.0,46961.0,0.375]
[1641199829366,0.09056405,46968.0,46961.0,0.375]
[1641199829565,0.09056405,46968.0,46961.0,0.374]
[1641199829765,0.09056405,46968.0,46960.0,0.74401598]
[1641199830568,0.09056405,46968.0,46963.0,0.36210651]
[1641199830765,0.09056405,46968.0,46963.0,0.54210651]
[1641199832066,0.09056405,46968.0,46963.0,0.36210651]
[1641199832567,0.09056405,46968.0,46963.0,0.55210651]
[1641199833668,0.09056405,46968.0,46963.0,0.36210651]
[1641199834071,1.52389218,46968.0,46961.0,0.96578682]
[1641199834271,1.52389218,46968.0,46961.0,0.36210651]
[1641199834471,1.52389218,46968.0,46963.0,0.189]
[1641199835572,0.09056405,46968.0,46963.0,0.189]
[1641199835772,0.09056405,46968.0,46961.0,0.36210651]
[1641199836178,1.52389218,46968.0,46961.0,0.36210651]
[1641199836472,1.52389218,46968.0,46961.0,0.55210651]
[1641199837174,1.43332813,46967.0,46961.0,0.19]
[1641199837775,1.43332813,46967.0,46960.0,0.50244218]
[1641199837972,1.43332813,46967.0,46960.0,0.52373755]
[1641199838175,1.52389218,46967.0,46960.0,0.50244218]
[1641199838375,1.52389218,46967.0,46960.0,0.69244218]
[1641199838976,1.52389218,46967.0,46960.0,0.71373755]
[1641199839877,0.14033567,46969.0,46960.0,0.71373755]
[1641199839878,1.43332813,46965.0,46962.0,0.36210651]
[1641199840480,1.43332813,46965.0,46962.0,0.55210651]
[1641199841479,1.43332813,46966.0,46962.0,0.55210651]
[1641199841680,1.43332813,46966.0,46964.0,0.36210651]
[1641199842283,0.09056405,46968.0,46960.0,0.50244218]
[1641199842480,0.09056405,46968.0,46964.0,0.189]
[1641199843288,0.09056405,46968.0,46964.0,0.27142]
[1641199843485,0.09056405,46968.0,46967.0,0.18]
[1641199843686,0.09056405,46968.0,46965.0,0.009794]
[1641199844185,0.09056405,46968.0,46967.0,0.02129019]
[1641199845487,0.09056405,46973.0,46967.0,0.02129019]
[1641199846488,0.09056405,46973.0,46967.0,0.21429019]
[1641199847888,0.09056405,46973.0,46967.0,0.02129019]
[1641199848490,0.09056405,46973.0,46967.0,0.21329019]
[1641199849092,1.52389218,46973.0,46967.0,0.21329019]
[1641199849691,1.52389218,46973.0,46966.0,0.14033567]
[1641199849893,1.58847218,46973.0,46966.0,0.14033567]
[1641199850495,1.58847218,46973.0,46966.0,0.32533567]
[1641199851095,1.43332813,46971.0,46966.0,0.32533567]
[1641199851800,1.43332813,46971.0,46966.0,0.14033567]
[1641199852197,1.43332813,46971.0,46964.0,0.0212935]
[1641199852409,1.43332813,46971.0,46966.0,0.186]
[1641199852709,0.14033567,46969.0,46966.0,0.186]
[1641199853512,0.09056405,46968.0,46966.0,0.186]
[1641199853711,0.09056405,46968.0,46964.0,0.0212935]
[1641199854612,0.09056405,46968.0,46964.0,0.2112935]
[1641199855915,0.09056405,46968.0,46964.0,0.0212935]
[1641199856415,0.09056405,46968.0,46964.0,0.2102935]
[1641199857815,0.09056405,46968.0,46964.0,0.0212935]
[1641199858418,0.09056405,46968.0,46964.0,0.2102935]
[1641199859719,0.09056405,46968.0,46964.0,0.0212935]
[1641199860520,0.09056405,46968.0,46964.0,0.2112935]
[1641199861820,0.09056405,46968.0,46964.0,0.0212935]
[1641199862420,0.09056405,46968.0,46964.0,0.2112935]
[1641199863720,0.09056405,46968.0,46964.0,0.0212935]
[1641199864519,0.09056405,46968.0,46964.0,0.2102935]
[1641199865222,1.52389218,46968.0,46965.0,0.36210651]
[1641199866425,1.52389218,46968.0,46965.0,0.55110651]
[1641199866626,1.43332813,46967.0,46965.0,0.55110651]
[1641199867628,1.43332813,46967.0,46965.0,0.189]
[1641199868126,1.43332813,46967.0,46965.0,0.55110651]
[1641199868528,1.43332813,46967.0,46965.0,0.55210651]
[1641199870428,1.43332813,46967.0,46965.0,0.55310651]
[1641199870829,1.52389218,46968.0,46965.0,0.55310651]
[1641199871629,0.09056405,46968.0,46965.0,0.191]
[1641199871829,0.09056405,46968.0,46964.0,0.38339979]
[1641199872430,0.09056405,46968.0,46964.0,0.57339979]
[1641199872833,0.09056405,46968.0,46966.0,0.36210651]
[1641199873732,0.09056405,46968.0,46965.0,0.60368031]
[1641199873932,0.09056405,46968.0,46964.0,0.57339979]
[1641199874534,0.09056405,46968.0,46965.0,0.36210651]
[1641199875936,0.09056405,46968.0,46964.0,0.38339979]
[1641199876537,0.09056405,46968.0,46966.0,0.36210651]
[1641199878338,0.09056405,46968.0,46965.0,0.36210651]
[1641199878539,0.09056405,46968.0,46966.0,0.187]
[1641199879840,0.09056405,46968.0,46965.0,0.36210651]
[1641199880545,0.09056405,46968.0,46965.0,0.55010651]
[1641199881742,0.09056405,46968.0,46965.0,0.36210651]
[1641199882445,0.09056405,46968.0,46965.0,0.55010651]
[1641199883547,0.18,46966.0,46965.0,0.55010651]
[1641199883744,0.09056405,46968.0,46965.0,0.55010651]
[1641199883944,0.09056405,46968.0,46965.0,0.36210651]
[1641199884545,0.09056405,46968.0,46963.0,0.60368031]
[1641199884746,0.09056405,46968.0,46959.0,0.36210651]
[1641199884747,0.14033567,46964.0,46959.0,0.36210651]
[1641199884947,0.21946567,46964.0,46959.0,0.36210651]
[1641199886050,0.09056405,46963.0,46959.0,0.36210651]
[1641199886447,0.09056405,46963.0,46959.0,0.52510651]
[1641199887151,0.18,46962.0,46959.0,0.52510651]
[1641199887351,0.18,46962.0,46959.0,1e-08]
[1641199887550,0.18,46962.0,46956.0,0.84515243]
[1641199887851,1.52339338,46963.0,46960.0,0.36223886]
[1641199888051,0.18,46961.0,46960.0,0.36223886]
[1641199888651,0.18,46961.0,46957.0,0.84515243]
[1641199888850,0.18,46961.0,46955.0,1.20736061]
[1641199888851,0.18,46958.0,46955.0,1.20736061]
[1641199889050,0.18,46958.0,46954.0,0.14033567]
[1641199889850,0.18,46957.0,46954.0,0.14033567]
[1641199890052,1.70182248,46957.0,46954.0,0.14033567]
[1641199890451,1.89282248,46957.0,46954.0,0.14033567]
[1641199890653,1.71282248,46957.0,46954.0,0.14033567]
[1641199891155,0.09056405,46956.0,46954.0,0.14033567]
[1641199892151,0.09056405,46956.0,46951.0,0.84515243]
[1641199892352,0.09056405,46956.0,46952.0,0.84515243]
[1641199892551,0.28156405,46956.0,46952.0,0.84515243]
[1641199893153,0.191,46956.0,46952.0,0.84515243]
[1641199893354,0.18,46954.0,46952.0,0.84515243]
[1641199893954,0.18,46954.0,46950.0,0.84515243]
[1641199894453,0.367,46954.0,46950.0,0.84515243]
[1641199894853,0.187,46954.0,46950.0,0.84515243]
[1641199895053,0.367,46954.0,46950.0,0.84515243]
[1641199895254,0.09056405,46953.0,46950.0,0.84515243]
[1641199896554,0.27856405,46953.0,46950.0,0.84515243]
[1641199897156,0.188,46953.0,46950.0,0.84515243]
[1641199898057,0.09056405,46952.0,46951.0,0.60383109]
[1641199898759,0.09056405,46952.0,46949.0,0.16163592]
[1641199899059,0.189,46953.0,46950.0,1.20736061]
[1641199900458,0.38,46953.0,46950.0,1.20736061]
[1641199900661,0.38,46953.0,46949.0,0.16163592]
[1641199901073,0.83987904,46950.0,46949.0,0.16163592]
[1641199901461,0.83987904,46950.0,46949.0,0.14033567]
[1641199901861,0.83987904,46950.0,46949.0,0.50222645]
[1641199902062,0.36017972,46951.0,46949.0,0.50222645]
[1641199902561,0.19,46950.0,46949.0,0.64022645]
[1641199902962,0.19,46950.0,46949.0,0.27833567]
[1641199903163,0.19,46950.0,46949.0,0.138]
[1641199903365,0.2113104,46950.0,46947.0,0.36189078]
[1641199903565,0.18,46948.0,46923.0,0.01]
[1641199903762,0.18,46939.0,46923.0,0.19]
[1641199903963,0.18,46939.0,46923.0,0.21131184]
[1641199904161,0.18,46939.0,46923.0,0.20131184]
[1641199904364,0.02131184,46941.0,46923.0,0.20131184]
[1641199904365,0.18,46943.0,46923.0,0.18]
[1641199904563,0.186,46939.0,46934.0,1.32809667]
[1641199904761,0.186,46939.0,46938.0,1.20644391]
[1641199905163,0.366,46939.0,46938.0,1.20644391]
[1641199905364,0.366,46939.0,46934.0,1.46843234]
[1641199905665,0.09057627,46938.0,46934.0,1.46843234]
[1641199905864,0.09057627,46938.0,46934.0,0.14033567]
[1641199906465,0.27457627,46938.0,46934.0,0.14033567]
[1641199906865,0.27457627,46938.0,46934.0,0.32033567]
[1641199907065,0.27457627,46938.0,46937.0,0.18]
[1641199907365,0.184,46938.0,46937.0,0.18]
[1641199907763,0.09057627,46944.0,46935.0,0.08308628]
[1641199907963,0.14033567,46945.0,46935.0,0.08308628]
[1641199908364,0.14033567,46945.0,46936.0,0.01207778]
[1641199908579,0.32533567,46945.0,46936.0,0.01207778]
[1641199909367,0.09058893,46944.0,46936.0,0.01207778]
[1641199910565,0.27558893,46944.0,46936.0,0.01207778]
[1641199911468,0.09058893,46943.0,46936.0,0.01207778]
[1641199912466,0.27558893,46943.0,46936.0,0.01207778]
[1641199912668,1.11423841,46943.0,46936.0,0.01207778]
[1641199913368,1.11423841,46943.0,46935.0,0.02130628]
[1641199913570,0.09058893,46942.0,46935.0,0.02130628]
[1641199914372,0.09058893,46942.0,46934.0,1.00620606]
[1641199914571,0.35943426,46940.0,46937.0,0.36195471]
[1641199915170,0.27658893,46942.0,46937.0,0.36195471]
[1641199915171,0.35943426,46939.0,46937.0,0.36195471]
[1641199915971,0.09058893,46944.0,46934.0,0.16164266]
[1641199916184,0.09058893,46941.0,46934.0,1.48973933]
[1641199916383,0.09058893,46941.0,46937.0,1.20651934]
[1641199917187,0.186,46944.0,46937.0,1.20651934]
[1641199917188,0.27658893,46944.0,46940.0,0.84550103]
[1641199917786,0.09058893,46944.0,46940.0,0.90852103]
[1641199917987,0.09058893,46943.0,46940.0,0.90852103]
[1641199919486,0.27558893,46944.0,46941.0,0.84550103]
[1641199919892,0.09058893,46944.0,46941.0,0.84550103]
[1641199920488,0.09058893,46943.0,46941.0,0.84550103]
[1641199922087,0.14033567,46945.0,46941.0,0.84550103]
[1641199922290,0.14033567,46945.0,46944.0,0.18]
[1641199922888,0.14033567,46945.0,46941.0,0.009794]
[1641199923291,0.14033567,46945.0,46944.0,0.02130093]
[1641199924491,0.33133567,46945.0,46944.0,1.22782027]
[1641199924691,0.33133567,46945.0,46944.0,1.40782027]
[1641199925091,0.33133567,46945.0,46944.0,1.22782027]
[1641199925491,0.33133567,46945.0,46944.0,1.40782027]
[1641199925694,1.43125843,46951.0,46944.0,1.40782027]
[1641199925695,0.14033567,46959.0,46944.0,1.40782027]
[1641199925893,0.14033567,46959.0,46954.0,0.18]
[1641199926095,0.57389361,46959.0,46954.0,0.2523]
[1641199926593,0.75189361,46959.0,46954.0,0.4333]
[1641199926794,0.75189361,46959.0,46955.0,0.18]
[1641199926996,0.25433567,46959.0,46955.0,0.18]
[1641199927694,0.25433567,46959.0,46954.0,0.4333]
[1641199927896,0.07633567,46959.0,46954.0,0.0723]
[1641199928096,0.07633567,46959.0,46953.0,0.009794]
[1641199928495,0.25533567,46959.0,46954.0,0.184]
[1641199929797,0.07633567,46959.0,46953.0,0.009794]
[1641199930397,0.25633567,46959.0,46953.0,0.192794]
[1641199931401,1.44058968,46958.0,46953.0,0.192794]
[1641199931799,1.44058968,46958.0,46953.0,0.009794]
[1641199931999,1.44058968,46958.0,46948.0,0.14033567]
[1641199932399,1.62258968,46958.0,46948.0,0.32333567]
[1641199933400,1.44058968,46957.0,46949.0,0.36208291]
[1641199934401,1.62158968,46957.0,46949.0,0.54708291]
[1641199934801,1.62158968,46957.0,46949.0,0.185]
[1641199935803,1.44058968,46957.0,46948.0,0.50241858]
[1641199936505,1.61358968,46957.0,46948.0,0.68641858]
[1641199937506,0.09057144,46956.0,46949.0,0.36208291]
[1641199938405,0.09057144,46956.0,46949.0,0.54508291]
[1641199938707,0.26857144,46956.0,46949.0,0.54508291]
[1641199939808,1.53116112,46955.0,46948.0,0.14033567]
[1641199940513,1.59658968,46955.0,46948.0,0.30333567]
[1641199941713,0.09057144,46954.0,46948.0,0.30333567]
[1641199941912,0.09057144,46954.0,46948.0,0.14033567]
[1641199942513,0.168,46954.0,46948.0,0.31233567]
[1641199943719,0.09057144,46953.0,46948.0,0.67441858]
[1641199943914,0.09057144,46953.0,46948.0,0.50241858]
[1641199944515,0.20557144,46953.0,46948.0,0.67741858]
[1641199945719,0.09057144,46952.0,46951.0,0.36208291]
[1641199946515,0.22357144,46952.0,46951.0,0.51908291]
[1641199947817,0.09057144,46952.0,46951.0,0.36208291]
[1641199948016,0.09057144,46952.0,46950.0,0.6034568]
[1641199948716,0.18057144,46952.0,46950.0,0.7794568]
[1641199949117,0.09,46952.0,46951.0,0.36229604]
[1641199949817,1.53116112,46953.0,46951.0,0.36229604]
[1641199950318,1.44058968,46952.0,46951.0,0.36229604]
[1641199950517,1.53116112,46952.0,46951.0,0.138]
[1641199951220,0.09057144,46952.0,46951.0,0.138]
[1641199951820,0.09057144,46952.0,46948.0,0.50263171]
[1641199952421,0.09057144,46952.0,46948.0,0.36229604]
[1641199952620,0.042,46952.0,46948.0,0.54529604]
[1641199953219,0.042,46952.0,46948.0,0.68563171]
[1641199953619,0.09057144,46951.0,46948.0,0.68563171]
[1641199953819,0.09057144,46951.0,46948.0,0.50263171]
[1641199954623,0.22757144,46951.0,46948.0,0.68963171]
[1641199955522,0.09057144,46950.0,46948.0,0.68963171]
[1641199955925,0.09057144,46950.0,46948.0,0.50263171]
[1641199956525,0.25057144,46950.0,46948.0,0.69063171]
[1641199956726,0.25057144,46950.0,46949.0,0.36229604]
[1641199956925,0.25057144,46950.0,46949.0,0.44799604]
[1641199957125,0.25057144,46950.0,46949.0,0.0857]
[1641199957942,0.09057144,46950.0,46949.0,0.0857]
[1641199958544,0.09057144,46950.0,46949.0,0.2737]
[1641199958545,0.21857144,46950.0,46949.0,0.2737]
[1641199958946,0.128,46950.0,46949.0,0.8771568]
[1641199959745,0.21857144,46950.0,46949.0,0.8771568]
[1641199959944,0.09057144,46950.0,46949.0,0.6891568]
[1641199960646,0.21857144,46950.0,46949.0,0.8771568]
[1641199961050,0.21857144,46950.0,46949.0,0.2737]
[1641199961846,0.21857144,46950.0,46949.0,0.0857]
[1641199962047,0.09057144,46950.0,46948.0,0.74379247]
[1641199962550,0.22757144,46950.0,46948.0,0.92979247]
[1641199962948,0.22757144,46950.0,46949.0,0.3621648]
[1641199963651,0.22757144,46950.0,46948.0,0.68850047]
[1641199964048,0.09057144,46950.0,46948.0,0.50250047]
[1641199964552,0.09057144,46949.0,46948.0,0.68850047]
[1641199965750,0.09057144,46949.0,46948.0,0.32633567]
[1641199965950,0.09057144,46949.0,46948.0,0.14033567]
[1641199966450,0.09057144,46949.0,46948.0,0.50250047]
[1641199966651,0.23557144,46949.0,46948.0,0.69250047]
[1641199967952,0.09057144,46949.0,46948.0,0.50250047]
[1641199968555,0.23157144,46949.0,46948.0,0.69150047]
[1641199968955,0.141,46949.0,46948.0,0.69150047]
[1641199969555,0.23157144,46949.0,46948.0,0.69150047]
[1641199970055,0.09057144,46949.0,46948.0,0.50250047]
[1641199970655,0.23557144,46949.0,46948.0,0.69150047]
[1641199971458,0.145,46949.0,46948.0,0.69150047]
[1641199971858,1.53116112,46954.0,46948.0,0.50250047]
[1641199972260,0.09057144,46949.0,46948.0,0.50250047]
[1641199972658,0.09057144,46949.0,46948.0,0.67450047]
[1641199973158,0.09057144,46953.0,46948.0,0.67450047]
[1641199973862,0.09057144,46953.0,46948.0,0.50250047]
[1641199974660,0.166,46953.0,46948.0,0.67850047]
[1641199975662,0.09057144,46952.0,46950.0,0.3621648]
[1641199975863,0.15880144,46952.0,46950.0,0.3621648]
[1641199976466,1.59939112,46952.0,46949.0,0.3621648]
[1641199976663,1.78439112,46952.0,46950.0,0.139]
[1641199977466,1.53116112,46951.0,46950.0,0.139]
[1641199978067,1.53116112,46951.0,46949.0,0.3621648]
[1641199978667,1.71416112,46951.0,46949.0,0.5171648]
[1641199979768,0.09057144,46950.0,46949.0,0.155]
[1641199979968,0.09057144,46950.0,46948.0,0.50250047]
[1641199980669,0.28657144,46950.0,46949.0,0.3621648]
[1641199981470,0.28657144,46950.0,46948.0,0.14033567]
[1641199981972,0.09057144,46950.0,46948.0,0.14033567]
[1641199982169,1.44058968,46952.0,46948.0,0.14033567]
[1641199982170,0.09057144,46949.0,46948.0,0.14033567]
[1641199982371,0.17140144,46949.0,46948.0,0.14033567]
[1641199984676,0.35840144,46949.0,46948.0,0.26933567]
[1641199985974,0.35840144,46949.0,46948.0,0.14033567]
[1641199985975,0.17140144,46949.0,46948.0,0.14033567]
[1641199986574,0.36040144,46949.0,46948.0,0.29133567]
[1641199988575,0.17140144,46949.0,46948.0,0.29133567]
[1641199988774,0.36040144,46949.0,46948.0,0.29133567]
[1641199989977,0.17140144,46949.0,46948.0,0.14033567]
[1641199990178,0.09057144,46949.0,46948.0,0.14033567]
[1641199990678,0.28657144,46949.0,46948.0,0.14033567]
[1641199991091,0.196,46949.0,46948.0,0.14033567]
[1641199991879,0.28657144,46949.0,46948.0,0.14033567]
[1641199992082,0.09057144,46949.0,46948.0,0.14033567]
[1641199992780,0.28257144,46949.0,46948.0,0.14033567]
[1641199993180,0.192,46949.0,46948.0,0.14033567]
[1641199993981,0.09057144,46950.0,46948.0,0.14033567]
[1641199994181,0.09057144,46949.0,46948.0,0.14033567]
[1641199994781,0.28057144,46950.0,46948.0,0.14033567]
[1641199995483,0.09057144,46949.0,46948.0,0.14033567]
[1641199996486,1.53116112,46949.0,46948.0,0.14033567]
[1641199996687,1.72016112,46949.0,46948.0,0.28533567]
[1641199997189,0.27957144,46949.0,46948.0,0.28533567]
[1641199998085,0.09057144,46949.0,46948.0,0.14033567]
[1641199998387,1.53042084,46949.0,46948.0,0.14033567]
[1641199998800,1.69842084,46949.0,46948.0,0.31933567]
[1641199999202,1.6078494,46949.0,46948.0,0.31933567]
[1641200000001,0.168,46949.0,46948.0,0.14033567]
[1641200000202,0.09057144,46949.0,46948.0,0.14033567]
[1641200000802,1.68151386,46949.0,46948.0,0.30133567]
[1641200001003,1.59094242,46949.0,46948.0,0.30133567]
[1641200001604,1.68151386,46949.0,46948.0,0.30133567]
[1641200001803,1.74589386,46949.0,46948.0,0.30133567]
[1641200002206,1.59489386,46949.0,46948.0,0.14033567]
[1641200002905,1.78089386,46949.0,46948.0,0.29933567]
[1641200003305,0.34095144,46949.0,46948.0,0.29933567]
[1641200004106,0.15495144,46949.0,46948.0,0.14033567]
[1641200004706,0.34095144,46949.0,46948.0,0.29533567]
[1641200006107,0.15495144,46949.0,46948.0,0.14033567]
[1641200006808,0.30795144,46949.0,46948.0,0.30333567]
[1641200008011,0.30795144,46949.0,46948.0,0.14033567]
[1641200008211,0.15495144,46949.0,46948.0,0.14033567]
[1641200008812,0.31095144,46949.0,46948.0,0.30433567]
[1641200009012,0.24657144,46949.0,46948.0,0.30433567]
[1641200009914,1.6864449,46949.0,46948.0,0.30433567]
[1641200010215,1.5304449,46949.0,46948.0,0.14033567]
[1641200010714,1.6844449,46949.0,46948.0,0.30333567]
[1641200010915,0.24457144,46949.0,46948.0,0.30333567]
[1641200012012,0.09057144,46949.0,46948.0,0.14033567]
[1641200012711,0.24757144,46949.0,46948.0,0.30533567]
[1641200012914,0.157,46949.0,46948.0,0.30533567]
[1641200013714,0.157,46949.0,46948.0,0.165]
[1641200014115,0.09057144,46949.0,46945.0,0.3621648]
[1641200014315,0.09057144,46949.0,46947.0,0.14033567]
[1641200014715,0.26857144,46949.0,46947.0,0.14033567]
[1641200014916,0.178,46949.0,46947.0,0.14033567]
[1641200015717,0.09057144,46948.0,46947.0,0.14033567]
[1641200016718,0.26357144,46948.0,46947.0,0.31933567]
[1641200017320,0.173,46948.0,46947.0,0.31933567]
[1641200017922,0.26357144,46948.0,46947.0,0.31933567]
[1641200018121,0.09057144,46948.0,46947.0,0.14033567]
[1641200018723,0.26357144,46948.0,46947.0,0.31933567]
[1641200020327,0.09057144,46948.0,46947.0,0.14033567]
[1641200020726,0.26357144,46948.0,46947.0,0.31933567]
[1641200021127,0.173,46948.0,46947.0,0.31933567]
[1641200022128,1.5304449,46952.0,46947.0,0.14033567]
[1641200022530,0.09057144,46948.0,46947.0,0.14033567]
[1641200022729,0.09057144,46948.0,46947.0,0.26033567]
[1641200023329,1.62987346,46952.0,46947.0,0.26033567]
[1641200024130,0.09057144,46951.0,46947.0,0.62250047]
[1641200024329,0.09057144,46951.0,46947.0,0.50250047]
[1641200024730,0.28057144,46951.0,46947.0,0.64650047]
[1641200025932,0.09057144,46950.0,46947.0,0.64650047]
[1641200026833,0.24557144,46950.0,46949.0,0.3621648]
[1641200028134,0.09057144,46950.0,46949.0,0.3621648]
[1641200028836,0.28357144,46950.0,46949.0,0.3621648]
[1641200029636,0.193,46950.0,46949.0,0.3621648]
[1641200030335,0.09057144,46951.0,46949.0,0.3621648]
[1641200030737,0.28357144,46950.0,46949.0,0.3621648]
[1641200031438,0.28357144,46950.0,46948.0,0.6034568]
[1641200032347,0.09057144,46949.0,46948.0,0.6034568]
[1641200033948,0.09057144,46949.0,46947.0,0.50253915]
[1641200034849,0.25557144,46949.0,46947.0,0.67453915]
[1641200036153,0.09057144,46948.0,46947.0,0.50253915]
[1641200036752,0.173,46948.0,46947.0,0.70084039]
[1641200038157,0.09057144,46954.0,46947.0,0.16163691]
[1641200038356,0.09057144,46948.0,46947.0,0.25639691]
[1641200039054,0.27857144,46954.0,46947.0,0.25639691]
[1641200040355,0.09057144,46953.0,46948.0,0.36219208]
[1641200042758,0.27657144,46953.0,46948.0,0.36219208]
[1641200043359,0.186,46953.0,46949.0,0.36219208]
[1641200043960,0.09057144,46952.0,46948.0,0.36219208]
[1641200044760,0.09057144,46952.0,46948.0,0.54819208]
[1641200044962,0.14257144,46952.0,46948.0,0.54819208]
[1641200045162,0.14257144,46952.0,46949.0,0.36219208]
[1641200045762,0.09057144,46951.0,46949.0,0.36219208]
[1641200046761,0.22557144,46951.0,46949.0,0.55219208]
[1641200047462,0.135,46951.0,46949.0,0.55219208]
[1641200048165,0.09057144,46950.0,46949.0,0.36219208]
[1641200048865,0.09057144,46956.0,46949.0,0.36219208]
[1641200050064,0.132,46950.0,46949.0,0.55019208]
[1641200050265,0.132,46950.0,46949.0,0.55119208]
[1641200050865,0.132,46950.0,46949.0,0.74319208]
[1641200051065,0.22257144,46950.0,46949.0,0.74319208]
[1641200052168,0.09057144,46950.0,46949.0,0.36219208]
[1641200052966,0.09,46950.0,46949.0,0.55519208]
[1641200053868,0.18057144,46950.0,46949.0,0.55519208]
[1641200054766,0.18057144,46950.0,46949.0,0.38349174]
[1641200054967,0.09057144,46950.0,46949.0,0.57549174]
[1641200055167,0.09057144,46950.0,46949.0,0.21329966]
[1641200055368,0.09057144,46950.0,46949.0,0.81675646]
[1641200056468,0.09057144,46950.0,46949.0,0.62475646]
[1641200056870,0.09057144,46955.0,46949.0,0.82075646]
[1641200057869,0.09057144,46950.0,46949.0,0.82075646]
[1641200058269,0.09057144,46950.0,46949.0,0.62475646]
[1641200058476,0.09057144,46955.0,46949.0,0.62475646]
[1641200058871,0.09057144,46955.0,46949.0,0.81675646]
[1641200059273,0.09057144,46955.0,46951.0,0.36226854]
[1641200060875,0.26657144,46955.0,46951.0,0.54226854]
[1641200062276,0.09057144,46955.0,46951.0,0.36226854]
[1641200062476,1.43987346,46956.0,46951.0,0.36226854]
[1641200062477,0.09057144,46954.0,46951.0,0.36226854]
[1641200062877,0.09057144,46954.0,46951.0,0.54026854]
[1641200064079,0.183,46955.0,46952.0,0.36226854]
[1641200064080,0.27357144,46955.0,46952.0,0.36226854]
[1641200064282,0.09057144,46955.0,46952.0,0.36226854]
[1641200064880,0.27357144,46955.0,46952.0,0.54126854]
[1641200065080,0.27357144,46955.0,46952.0,0.179]
[1641200065081,0.09057144,46954.0,46952.0,0.179]
[1641200066181,0.09057144,46954.0,46951.0,0.36226854]
[1641200066983,0.26857144,46954.0,46951.0,0.54426854]
[1641200067386,0.178,46954.0,46952.0,0.36226854]
[1641200067985,0.09057144,46953.0,46951.0,0.54426854]
[1641200068184,0.09057144,46953.0,46951.0,0.36226854]
[1641200068987,0.26657144,46953.0,46951.0,0.54726854]
[1641200069587,0.25543,46953.0,46951.0,0.54726854]
[1641200070287,0.07943,46953.0,46951.0,0.36226854]
[1641200070488,0.09057144,46952.0,46950.0,0.54226854]
[1641200070887,0.09057144,46952.0,46951.0,0.185]
[1641200072288,0.09057144,46952.0,46950.0,0.54226854]
[1641200072889,0.09057144,46952.0,46950.0,0.73026854]
[1641200073089,0.09057144,46952.0,46951.0,0.36226854]
[1641200074391,0.09057144,46952.0,46950.0,0.7834568]
[1641200074589,0.09057144,46956.0,46950.0,0.7834568]
[1641200074989,0.172,46952.0,46950.0,0.9704568]
[1641200075392,0.09057144,46951.0,46950.0,0.9704568]
[1641200076192,0.09057144,46951.0,46950.0,0.7834568]
[1641200076894,0.09057144,46951.0,46950.0,0.9724568]
[1641200077193,0.09057144,46954.0,46950.0,0.9724568]
[1641200078293,0.09057144,46954.0,46950.0,0.7834568]
[1641200078496,0.09057144,46954.0,46950.0,0.18]
[1641200078993,0.26857144,46954.0,46950.0,0.362]
[1641200079193,0.26857144,46954.0,46950.0,0.7854568]
[1641200079394,0.26857144,46954.0,46950.0,0.9654568]
[1641200080395,0.09057144,46954.0,46950.0,0.7834568]
[1641200080794,0.09057144,46954.0,46950.0,0.6034568]
[1641200080994,0.26957144,46954.0,46950.0,0.9654568]
[1641200081409,0.09057144,46953.0,46950.0,0.9654568]
[1641200081908,0.09057144,46953.0,46951.0,0.6034568]
[1641200083012,0.26657144,46953.0,46951.0,0.7884568]
[1641200083513,0.26657144,46953.0,46952.0,0.009794]
[1641200083716,0.09057144,46956.0,46952.0,0.09485175]